Cogmind - Beta 13 @@@ ROGUE MODE // 2024.03.31 @ 06:43:39 Player: oberon720 Result: Destroyed by G-73 Enforcer with Phase Gun Performance ------------- Evolutions (6) 3000 Regions Visited (12) 2400 Robots Destroyed (96) 480 Value Destroyed (4985) 4985 Prototype IDs (3) 60 Alien Tech Used (0) 0 Bonus (2600) 2600 TOTAL SCORE: 13525 Bonus ------- High Alert Combat Kills 8 Aligned with FarCom 300 MAIN.C Attacked Warlord 500 Warlord Defense Kills 1810 Friendly Fire -18 Cogmind --------- Core Integrity 0/1150 Matter 283/300 Energy 83/100 System Corruption 0% Temperature Cool (9) Movement Core (400) Ox7 Location -4/Warlord Parts ------- > --- POWER (1) -------- (None) > --- PROPULSION (3) --- (None) > --- UTILITY (12) ----- Advanced Heat Sink Large Storage Unit Advanced Visual Processing Unit Experimental Weapon Shielding > --- WEAPON (3) ------- (None) > --- INVENTORY (15) --- Fission Core Trap Scanner Improved Signal Interpreter Terrain Scan Processor Improved Target Analyzer Precision Matter Filter Improved Reaction Control System Remote Datajack Peak State ------------ > --- POWER ------------ Antimatter Reactor > --- PROPULSION ------- Flexi-carbon Leg Flexi-carbon Leg Flexi-carbon Leg > --- UTILITY ---------- Advanced Cooling System Large Storage Unit Improved Trap Scanner Advanced Visual Processing Unit Improved Sensor Array Seismic Detector Improved Core Shielding Experimental Weapon Shielding Hardened Heavy Armor Plating Improved Light Armor Plating Improved Light Armor Plating > --- WEAPON ----------- Matter Neutralizer Firepult > --- INVENTORY -------- Fission Core Advanced Heat Sink Trap Scanner Improved Signal Interpreter Improved Terrain Scanner Terrain Scan Processor Improved Target Analyzer Energy Filter Heavy Reflective Plating Force Field Drone Bay Remote Datajack [Rating: 98] Favorites ----------- Power Antimatter Reactor Engine Deuterium Engine Power Core Fission Core Reactor Antimatter Reactor Propulsion Flexi-carbon Leg Treads Light Treads Leg Flexi-carbon Leg Wheel Compact Wheel Utility Large Storage Unit Device Improved Heat Sink Storage Large Storage Unit Processor Advanced Visual Processing Unit Protection Improved Light Armor Plating Weapon Firepult Energy Gun Beamcaster Energy Cannon Firepult Ballistic Gun Minigun Launcher Heavy Rocket Launcher Special Weapon Mining Laser Special Melee Weapon Improved Datajack Build | -11 -10 -10 -10 -9 -8 -7 -6 -5 -4 -4 -4 -4 ------- Run | Yrd Mat Min Exi Min Mat Fac Fac Fac Fac Upp Upp War Slots Evolved 12 | . . . . . 4 2 2 2 2 . . . Power . | . . . . . . . . . . . . . Propulsion 1 | . . . . . 1 . . . . . . . Utility 10 | . . . . . 2 2 2 2 2 . . . Weapon 1 | . . . . . 1 . . . . . . . Parts Attached 80 | 7 2 6 1 5 12 2 14 6 2 6 9 8 Power 10 | 2 . 1 . 2 1 . 2 . . 1 . 1 Engine 5 | 2 . 1 . 1 1 . . . . . . . Core 3 | . . . . 1 . . 2 . . . . . Reactor 2 | . . . . . . . . . . 1 . 1 Propulsion 17 | 2 . 2 . 2 4 . 3 3 . . 1 . Treads 2 | . . 2 . . . . . . . . . . Leg 13 | . . . . 2 4 . 3 3 . . 1 . Wheel 2 | 2 . . . . . . . . . . . . Hover . | . . . . . . . . . . . . . Flight . | . . . . . . . . . . . . . Utility 41 | 1 2 . 1 . 5 2 8 3 2 4 8 5 Device 20 | . 2 . 1 . 4 . 3 1 2 2 4 1 Storage 2 | 1 . . . . 1 . . . . . . . Processor 1 | . . . . . . . . 1 . . . . Hackware . | . . . . . . . . . . . . . Protection 18 | . . . . . . 2 5 1 . 2 4 4 Artifact . | . . . . . . . . . . . . . Weapon 12 | 2 . 3 . 1 2 . 1 . . 1 . 2 Energy Gun 2 | 1 . 1 . . . . . . . . . . Energy Cannon 3 | . . . . 1 . . . . . 1 . 1 Ballistic Gun 3 | 1 . 1 . . 1 . . . . . . . Ballistic Cannon . | . . . . . . . . . . . . . Launcher 1 | . . . . . . . . . . . . 1 Special Weapon 2 | . . 1 . . . . 1 . . . . . Impact Weapon . | . . . . . . . . . . . . . Slashing Weapon . | . . . . . . . . . . . . . Piercing Weapon . | . . . . . . . . . . . . . Special Melee Weapon 1 | . . . . . 1 . . . . . . . Unidentified Prototypes 3 | . . . . 1 . . 1 . . . 1 . Parts Lost 29 | . . . . 3 . . 5 . . 3 1 17 Power 2 | . . . . 1 . . . . . . . 1 Propulsion 5 | . . . . 1 . . 1 . . . . 3 Utility 18 | . . . . . . . 3 . . 3 1 11 Weapon 4 | . . . . 1 . . 1 . . . . 2 Highest Loss Streak 16 | . . . . 1 . . 2 . . 2 1 16 To Critical Strikes . | . . . . . . . . . . . . . Average Slot Usage (%) 87 | . 98 100 100 86 86 92 82 88 89 87 87 83 Engine 3 | . 14 14 14 7 6 7 1 . . . . . Core 1 | . . . . 4 2 . 4 5 5 1 . . Reactor 1 | . . . . . . . . . . 3 5 4 Treads 3 | . . 13 28 12 . . . . . . . . Leg 14 | . . . . 11 25 23 18 17 15 15 15 14 Device 21 | . 12 14 14 14 27 23 21 17 26 22 24 25 Storage 7 | . 14 14 14 14 9 7 6 5 5 5 5 5 Processor 2 | . . . . . . . . 5 5 5 5 5 Protection 17 | . . . . . . 15 20 29 26 25 25 25 Energy Gun 2 | . 14 7 14 9 . . . . . . . . Energy Cannon 4 | . . . . 4 9 7 6 5 5 7 5 . Ballistic Gun 3 | . 14 14 14 7 6 7 2 . . . . . Naked Turns . | . . . . . . . . . . . . . Heaviest Build 107 | 11 12 23 23 33 58 63 89 74 82 107 103 99 Greatest Support 65 | 26 26 40 40 40 53 48 58 60 60 60 65 65 Greatest Overweight (x) 7 | . . . . 1 1 1 2 1 1 1 1 7 Average Overweight (x) . | . . . . . . 1 1 1 1 1 1 1 Largest Inventory Capacity 15 | 8 8 8 8 8 15 15 15 15 15 15 15 15 Average Capacity 13 | 6 8 8 8 8 12 15 15 15 15 15 15 15 Most Carried 15 | 5 2 8 8 8 9 11 12 14 12 14 15 14 Average Carried 10 | 1 . 4 7 7 5 8 9 10 11 12 12 13 Final Capacity 15 | 8 8 8 8 8 15 15 15 15 15 15 15 15 Final Carried 14 | . 2 7 8 7 9 11 11 13 11 14 12 8 Class Distribution -------------------- 36% | Scavenger-Mutant 27% | Mutant 12% | Scavenger-Skirmisher 12% | Skirmisher 10% | Scavenger-Tank Dominant Class ---------------- Mutant | -10/Materials Scavenger-Mutant | -10/Mines Scavenger-Mutant | -10/Exiles Scavenger-Mutant | -9/Mines Skirmisher | -8/Materials Skirmisher | -7/Factory Scavenger-Mutant | -6/Factory Scavenger-Skirmisher | -5/Factory Scavenger-Skirmisher | -4/Factory Scavenger-Mutant | -4/Upper Caves Mutant | -4/Upper Caves Mutant | -4/Warlord Resources | -11 -10 -10 -10 -9 -8 -7 -6 -5 -4 -4 -4 -4 ----------- Run | Yrd Mat Min Exi Min Mat Fac Fac Fac Fac Upp Upp War Matter Collected 1477 | 206 . 144 . 152 168 20 226 60 20 96 164 221 Remotely . | . . . . . . . . . . . . . Salvage Created 5415 | . . . . 385 475 105 1197 129 184 667 1349 924 Parts 114 | . . . . 11 19 8 28 2 3 13 17 13 Haulers Intercepted 2 | . . . . . . . . 1 . . 1 . Recyclers Shooed 4 | . . . . 1 . . 2 1 . . . . Parts Field Recycled . | . . . . . . . . . . . . . Retrieved Matter . | . . . . . . . . . . . . . Parts Self-Destructed 23 | . . . . . . . . . . 10 13 . Prevented . | . . . . . . . . . . . . . Kills | -11 -10 -10 -10 -9 -8 -7 -6 -5 -4 -4 -4 -4 ------- Run | Yrd Mat Min Exi Min Mat Fac Fac Fac Fac Upp Upp War Combat Hostiles Destroyed 85 | . . . . 10 11 1 16 . 3 11 18 15 Guns 10 | . . . . 10 . . . . . . . . Cannons 8 | . . . . . 3 . . . . 1 2 2 AOE 26 | . . . . . 7 . 6 . 1 5 6 1 Classes Destroyed 19 | . . . . 5 6 1 1 1 . 1 . 4 Worker 9 | . . . . . 1 2 6 . . . . . Builder 1 | . . . . . . . 1 . . . . . Tunneler 2 | . . . . 1 . . 1 . . . . . Hauler 2 | . . . . . . . . 1 . . 1 . Recycler 3 | . . . . 2 . . 1 . . . . . Watcher 2 | . . . . . 1 1 . . . . . . Swarmer 8 | . . . . . 4 . . . . 2 2 . Saboteur 2 | . . . . . . . . . . . . 2 Grunt 29 | . . . . 1 3 . 6 . 1 2 12 4 Brawler 3 | . . . . . . . . . . . . 3 Duelist 3 | . . . . 1 . . 1 . . 1 . . Protector 1 | . . . . . . . . . . . . 1 Sentry 6 | . . . . . 1 . 3 . . 1 1 . Demolisher 2 | . . . . . . . . . . . . 2 Specialist 2 | . . . . . 2 . . . . . . . Hunter 7 | . . . . . 1 . 4 . . . 2 . Programmer 13 | . . . . . . 1 2 . 2 4 1 3 Behemoth 1 | . . . . . . . . . . 1 . . Assembled 8 | . . . . 8 . . . . . . . . Best Kill Streak 9 | . . . . 8 4 2 6 1 2 3 7 9 Combat Bots Only 9 | . . . . 4 4 1 3 . 2 3 7 9 Max Kills in Single Turn 4 | . . . . 2 4 2 4 1 1 1 3 3 Gunslinging 1 | . . . . 1 . . . . . . . . Exploded 3 | . . . . . 3 . 2 . 1 1 2 1 Melee . | . . . . . . . . . . . . . Uniques/NPCs Destroyed . | . . . . . . . . . . . . . Combat | -11 -10 -10 -10 -9 -8 -7 -6 -5 -4 -4 -4 -4 -------- Run | Yrd Mat Min Exi Min Mat Fac Fac Fac Fac Upp Upp War Hostile Shots Fired 367 | . . . . 42 20 4 113 8 2 40 22 116 Missed 133 | . . . . 10 10 . 56 4 . 17 8 28 Damage Taken 6338 | . . . . 572 367 437 918 84 129 566 622 2643 Core 1723 | . . . . 140 173 157 90 . 9 31 179 944 Absorbed by Shields 152 | . . . . . . . . . 54 98 . . Redirected to Shielding 367 | . . . . . . 16 55 16 12 92 103 73 Ignored by Resistances 194 | . . . . . . 47 . . . . 9 138 Core Remaining (%) 79 | 100 . . . 44 68 77 89 100 . . . . Volleys Fired 147 | . . . 2 42 20 3 27 3 4 18 15 13 Largest 2 | . . . 2 2 2 1 1 1 1 1 1 1 Hottest 275 | . . . 98 98 275 250 250 250 250 250 250 250 Shots Fired 170 | . . . 4 56 24 3 27 3 4 20 16 13 Gun 72 | . . . 4 56 12 . . . . . . . Cannon 94 | . . . . . 12 3 26 3 4 20 16 10 Launcher 3 | . . . . . . . . . . . . 3 Special 1 | . . . . . . . 1 . . . . . Kinetic 47 | . . . 2 33 12 . . . . . . . Thermal 119 | . . . 2 23 12 3 26 3 4 20 16 10 Explosive 3 | . . . . . . . . . . . . 3 Electromagnetic . | . . . . . . . . . . . . . Robot Hit Streak 8 | . . . . 4 3 4 8 3 1 4 6 4 Robot Miss Streak 11 | . . . . 3 8 3 11 2 4 7 6 10 Penetration Max . | . . . . . . . . . . . . . Secondary Targets 3 | . . . . 3 . . . . . . . . Max Gunslinging Chain 1 | . . . . 1 . . . . . . . . Shots Hit Robots 106 | . . . . 27 13 3 20 3 4 14 12 10 Core Hits 226 | . . . . 17 23 4 39 2 6 25 51 59 Critical Kills 1 | . . . . 1 . . . . . . . . Critical Parts Destroyed . | . . . . . . . . . . . . . Critical Strikes 1 | . . . . 1 . . . . . . . . Destroy 1 | . . . . 1 . . . . . . . . Melee Attacks 3 | . . . . . 3 . . . . . . . Impact . | . . . . . . . . . . . . . Slashing . | . . . . . . . . . . . . . Piercing . | . . . . . . . . . . . . . Sneak Attacks 3 | . . . . . 3 . . . . . . . Combat Hostiles . | . . . . . . . . . . . . . Follow-up Attacks . | . . . . . . . . . . . . . Damage Inflicted 9876 | . . . . 546 766 430 2332 185 444 1246 1797 2130 Guns 581 | . . . . 546 35 . . . . . . . Cannons 1847 | . . . . . 212 33 405 55 42 449 414 237 Explosions 7426 | . . . . . 519 392 1917 130 395 797 1383 1893 Melee . | . . . . . . . . . . . . . Ramming 22 | . . . . . . 5 10 . 7 . . . Kinetic 326 | . . . . 291 35 . . . . . . . Thermal 8592 | . . . . 255 731 310 2087 185 437 1246 1797 1544 Explosive 821 | . . . . . . . 235 . . . . 586 Electromagnetic 115 | . . . . . . 115 . . . . . . Impact . | . . . . . . . . . . . . . Slashing . | . . . . . . . . . . . . . Piercing . | . . . . . . . . . . . . . Highest Corruption 4 | . . . . . . . . . . 3 4 4 Average Corruption 2 | . . . . . . . . . . 2 3 4 Corruption Purged . | . . . . . . . . . . . . . Corruption Blocked . | . . . . . . . . . . . . . Effects 50 | . . . . . . . . . . 26 23 1 Message Errors 15 | . . . . . . . . . . 6 8 1 Matter Fused 9 | . . . . . . . . . . 4 5 . Heat Flow Errors 6 | . . . . . . . . . . 4 2 . Energy Discharges 8 | . . . . . . . . . . 5 3 . Parts Fused 1 | . . . . . . . . . . 1 . . Data Loss (minor) 6 | . . . . . . . . . . 3 3 . Data Loss (major) 1 | . . . . . . . . . . 1 . . Misfires 3 | . . . . . . . . . . 2 1 . Alerts 1 | . . . . . . . . . . . 1 . Overload Shots . | . . . . . . . . . . . . . Overflow Damage 287 | . . . . . . . 237 . . 50 . . Projectiles 33 | . . . . . . . 7 . . 26 . . Explosions 254 | . . . . . . . 230 . . 24 . . Melee . | . . . . . . . . . . . . . Knockbacks . | . . . . . . . . . . . . . Impact . | . . . . . . . . . . . . . Kinetic . | . . . . . . . . . . . . . Secondary . | . . . . . . . . . . . . . Self-Inflicted Damage 1334 | . . . . . 100 376 321 . . 197 191 149 Shots 81 | . . . . . 4 12 19 . . 16 20 10 Rammed . | . . . . . . . . . . . . . Targets Rammed 6 | . . . . . . 2 3 . 1 . . . Kicked 6 | . . . . . . 2 3 . 1 . . . Crushed . | . . . . . . . . . . . . . Highest Temperature 829 | . . . 84 36 639 498 538 430 272 336 610 829 Average Temperature 201 | . . . 46 17 193 226 178 188 115 115 210 386 Received Heat Transfer 810 | . . . . 132 45 . 117 36 8 18 36 418 Effects 66 | . . . . . 3 6 13 3 . . 3 38 Shutdowns 10 | . . . . . 1 1 3 . . . . 5 Energy Bleed 4 | . . . . . . 1 1 . . . . 2 Interference 11 | . . . . . . . 2 . . . . 9 Matter Decay 7 | . . . . . . . 2 . . . 1 4 Short Circuit 2 | . . . . . . . . . . . 1 1 Damage (minor) 4 | . . . . . 1 . 1 . . . . 2 Damage (major) 23 | . . . . . . 4 4 3 . . . 12 Damage (core) 5 | . . . . . 1 . . . . . 1 3 Siege Activations . | . . . . . . . . . . . . . Robots Corrupted . | . . . . . . . . . . . . . Combat Hostiles . | . . . . . . . . . . . . . Parts Fried 1 | . . . . 1 . . . . . . . . Impact Corruptions . | . . . . . . . . . . . . . Robots Melted 43 | . . . . . 1 1 10 1 2 5 11 12 Combat Hostiles 41 | . . . . . 1 1 10 . 2 5 10 12 Parts Melted 184 | . . . . . 18 5 47 1 9 17 52 35 Heat Transferred 37110 | . . . . 444 3760 1090 8510 880 1690 4991 9120 6625 Parts Sabotaged . | . . . . . . . . . . . . . Parts Stolen . | . . . . . . . . . . . . . Parts Stripped . | . . . . . . . . . . . . . Power Chain Reactions . | . . . . . . . . . . . . . Alert | -11 -10 -10 -10 -9 -8 -7 -6 -5 -4 -4 -4 -4 ------- Run | Yrd Mat Min Exi Min Mat Fac Fac Fac Fac Upp Upp War Peak Influence 528 | . 65 40 . 60 528 319 314 281 339 . . . Initial 151 | . . 25 . . 23 149 58 151 39 . . . Average 174 | . 12 34 . 48 271 188 193 227 94 . . . Maximum Alert Level 2 | . . . . . 2 1 1 1 1 . . . Low Security (%) 54 | 100 100 100 . 100 20 87 40 33 85 . . . Level 1 45 | . . . . . 75 12 59 66 14 . . . Level 2 . | . . . . . 4 . . . . . . . Level 3 . | . . . . . . . . . . . . . Level 4 . | . . . . . . . . . . . . . Level 5 . | . . . . . . . . . . . . . High Security . | . . . . . . . . . . . . . Max Security . | . . . . . . . . . . . . . Squads Dispatched 24 | . 2 . . . 4 5 10 . 3 . . . Investigation 4 | . . . . . 1 1 2 . . . . . Extermination 4 | . . . . . . 1 2 . 1 . . . Reinforcement 12 | . 2 . . . 3 3 3 . 1 . . . Assault 1 | . . . . . . . . . 1 . . . Garrison 3 | . . . . . . . 3 . . . . . Intercept . | . . . . . . . . . . . . . Searches Triggered . | . . . . . . . . . . . . . Construction Impeded 2 | . . . . . . 1 1 . . . . . Haulers Reinforced 2 | . . . . . . 1 1 . . . . . Active Scanning Responses . | . . . . . . . . . . . . . Cargo Convoy Interrupts . | . . . . . . . . . . . . . Stealth | -11 -10 -10 -10 -9 -8 -7 -6 -5 -4 -4 -4 -4 --------- Run | Yrd Mat Min Exi Min Mat Fac Fac Fac Fac Upp Upp War Distress Signals 6 | . . . . . 4 1 1 . . . . . Communications Jammed . | . . . . . . . . . . . . . Distress Signals . | . . . . . . . . . . . . . Times Spotted 134 | . 5 1 . 16 16 9 17 5 11 11 16 27 Peak Tracking Total 12 | . 3 2 . 6 4 3 2 4 5 3 5 12 Tactical Retreats 5 | . 1 . . 2 1 . . . . . . 1 Traps | -11 -10 -10 -10 -9 -8 -7 -6 -5 -4 -4 -4 -4 ------- Run | Yrd Mat Min Exi Min Mat Fac Fac Fac Fac Upp Upp War Traps Triggered . | . . . . . . . . . . . . . Indirectly . | . . . . . . . . . . . . . Trap Hack Attempts . | . . . . . . . . . . . . . Triggered . | . . . . . . . . . . . . . Disarmed . | . . . . . . . . . . . . . Reprogrammed . | . . . . . . . . . . . . . Reused . | . . . . . . . . . . . . . Traps Extracted . | . . . . . . . . . . . . . Installed . | . . . . . . . . . . . . . Triggered 3 | . . . . . . . . . . . . 3 Machines | -11 -10 -10 -10 -9 -8 -7 -6 -5 -4 -4 -4 -4 ---------- Run | Yrd Mat Min Exi Min Mat Fac Fac Fac Fac Upp Upp War Machines Disabled 38 | . . . . . 5 6 13 7 5 . 2 . Max in Single Turn 7 | . . . . . 1 4 4 7 5 . 1 . Garrison Access 1 | . . . . . . . . . 1 . . . Machines Repaired . | . . . . . . . . . . . . . Machines Dismantled . | . . . . . . . . . . . . . Machines Sabotaged . | . . . . . . . . . . . . . Overloaded Fab Kills . | . . . . . . . . . . . . . Hacking | -11 -10 -10 -10 -9 -8 -7 -6 -5 -4 -4 -4 -4 --------- Run | Yrd Mat Min Exi Min Mat Fac Fac Fac Fac Upp Upp War Machines Accessed 17 | . 1 . 4 . 4 . 6 . . . 2 . Terminals 9 | . 1 . . . 3 . 5 . . . . . Fabricators 1 | . . . . . . . 1 . . . . . Repair Stations . | . . . . . . . . . . . . . Recycling Units . | . . . . . . . . . . . . . Scanalyzers 1 | . . . . . 1 . . . . . . . Garrison Access . | . . . . . . . . . . . . . Total Hacks 81 | . 2 . 49 . 8 . 15 . . . 7 . Successful 70 | . 1 . 49 . 5 . 8 . . . 7 . Failed 11 | . 1 . . . 3 . 7 . . . . . Catastrophic . | . . . . . . . . . . . . . Database Lockouts . | . . . . . . . . . . . . . Manual 4 | . . . 3 . 1 . . . . . . . Terminals 21 | . 2 . . . 6 . 13 . . . . . Fabricators 2 | . . . . . . . 2 . . . . . Repair Stations . | . . . . . . . . . . . . . Recycling Units . | . . . . . . . . . . . . . Scanalyzers 2 | . . . . . 2 . . . . . . . Garrison Access . | . . . . . . . . . . . . . Terminal Hacks 68 | . 1 . 49 . 3 . 8 . . . 7 . Record 63 | . . . 49 . 2 . 6 . . . 6 . Open Door 1 | . . . . . . . . . . . 1 . Open DSF 2 | . . . . . . . 2 . . . . . Locate Traps 1 | . . . . . 1 . . . . . . . Zone Layout 1 | . 1 . . . . . . . . . . . Fabricator Hacks . | . . . . . . . . . . . . . Repair Station Hacks . | . . . . . . . . . . . . . Recycling Unit Hacks . | . . . . . . . . . . . . . Scanalyzer 2 | . . . . . 2 . . . . . . . Insert Component 1 | . . . . . 1 . . . . . . . Analyze 1 | . . . . . 1 . . . . . . . Garrison Access Hacks . | . . . . . . . . . . . . . Unauthorized Hacks . | . . . . . . . . . . . . . Terminals . | . . . . . . . . . . . . . Fabricators . | . . . . . . . . . . . . . Repair Stations . | . . . . . . . . . . . . . Recycling Units . | . . . . . . . . . . . . . Scanalyzers . | . . . . . . . . . . . . . Garrison Access . | . . . . . . . . . . . . . Data Cores Recovered . | . . . . . . . . . . . . . Used . | . . . . . . . . . . . . . Hacking Detections 9 | . 1 . . . 3 . 5 . . . . . Full Trace Events 3 | . . . . . 1 . 2 . . . . . Feedback Events . | . . . . . . . . . . . . . Feedback Blocked . | . . . . . . . . . . . . . Robot Schematics Acquired . | . . . . . . . . . . . . . Robots Built . | . . . . . . . . . . . . . Authchips . | . . . . . . . . . . . . . Time . | . . . . . . . . . . . . . Total Robot Build Rating . | . . . . . . . . . . . . . Part Schematics Acquired 1 | . . . . . 1 . . . . . . . Parts Built . | . . . . . . . . . . . . . Authchips . | . . . . . . . . . . . . . Time . | . . . . . . . . . . . . . Total Part Build Rating . | . . . . . . . . . . . . . Parts Repaired . | . . . . . . . . . . . . . Time . | . . . . . . . . . . . . . Parts Recycled . | . . . . . . . . . . . . . Recycled Matter . | . . . . . . . . . . . . . Retrieved Matter . | . . . . . . . . . . . . . Retrieved Components . | . . . . . . . . . . . . . Parts Scanalyzed 1 | . . . . . 1 . . . . . . . Part Schematics Acquired 1 | . . . . . 1 . . . . . . . Parts Damaged 1 | . . . . . 1 . . . . . . . Bothacking | -11 -10 -10 -10 -9 -8 -7 -6 -5 -4 -4 -4 -4 ------------ Run | Yrd Mat Min Exi Min Mat Fac Fac Fac Fac Upp Upp War Used RIF Installer . | . . . . . . . . . . . . . Robots Hacked 2 | . . . . . 1 . 1 . . . . . Non-combat 2 | . . . . . 1 . 1 . . . . . Combat . | . . . . . . . . . . . . . Robot Hacks Applied 3 | . . . . . 2 . 1 . . . . . parse_system 2 | . . . . . 1 . 1 . . . . . no_distress 1 | . . . . . 1 . . . . . . . Relay Couplers Released 3 | . . . . . . . . . 3 . . . Machine Destruction 3 | . . . . . . . . . 3 . . . Fabnet Peak Effective % . | . . . . . . . . . . . . . Robots Rewired . | . . . . . . . . . . . . . Allies Hacked . | . . . . . . . . . . . . . Hacks Repelled . | . . . . . . . . . . . . . Allies | -11 -10 -10 -10 -9 -8 -7 -6 -5 -4 -4 -4 -4 -------- Run | Yrd Mat Min Exi Min Mat Fac Fac Fac Fac Upp Upp War Total Allies . | . . . . . . . . . . . . . Largest Group . | . . . . . . . . . . . . . Highest-Rated Group . | . . . . . . . . . . . . . Highest-Rated Ally . | . . . . . . . . . . . . . Total Orders . | . . . . . . . . . . . . . Ally Attacks . | . . . . . . . . . . . . . Total Damage . | . . . . . . . . . . . . . Kills . | . . . . . . . . . . . . . Allies Corrupted . | . . . . . . . . . . . . . Allies Melted . | . . . . . . . . . . . . . Intel | -11 -10 -10 -10 -9 -8 -7 -6 -5 -4 -4 -4 -4 ------- Run | Yrd Mat Min Exi Min Mat Fac Fac Fac Fac Upp Upp War Robot Analysis Total . | . . . . . . . . . . . . . Derelict Logs Recovered 4 | . . . . . . . . . . 2 2 . Drone Launches . | . . . . . . . . . . . . . Drone Recoveries . | . . . . . . . . . . . . . Exploration | -11 -10 -10 -10 -9 -8 -7 -6 -5 -4 -4 -4 -4 ------------- Run | Yrd Mat Min Exi Min Mat Fac Fac Fac Fac Upp Upp War Turns Passed 9473 | 45 200 164 958 282 682 465 1788 463 371 1433 1170 1452 Spaces Moved 4459 | 33 216 129 593 126 388 237 840 230 190 725 588 164 Core 3 | 1 . . . . . . . . . . . 2 Treads 675 | . . 39 593 43 . . . . . . . . Legs 3443 | . . . . 83 388 237 840 230 190 725 588 162 Wheels 338 | 32 216 90 . . . . . . . . . . Hover . | . . . . . . . . . . . . . Flight . | . . . . . . . . . . . . . Fastest Speed 50 | 50 90 90 160 120 120 190 190 190 190 190 190 190 Average Speed 176 | 92 90 111 160 139 156 190 201 190 190 190 190 201 Slowest Speed 400 | 100 90 160 160 240 190 190 260 190 190 190 190 400 Overloaded Moves . | . . . . . . . . . . . . . Propulsion Burnouts . | . . . . . . . . . . . . . Robots Hopped . | . . . . . . . . . . . . . Cave-ins Triggered . | . . . . . . . . . . . . . Exploration Rate (%) 36 | 4 32 37 92 33 37 10 23 13 9 83 86 15 Regions Visited 12 Branch Regions 6 Pre-discovered Areas 3 | . . . 1 . . . . . . 1 1 . Known Exits Taken . | . . . . . . . . . . . . . Unknown Exits Taken 12 | 1 1 1 1 1 1 1 1 1 1 1 1 . Scrap Searched 7 | . . . . . . . . . . 4 3 . Spaces Dug . | . . . . . . . . . . . . . Terrain Destroyed 348 | . . . . . 94 47 139 9 10 12 . 37 Melee . | . . . . . . . . . . . . . Projectile 3 | . . . . . 1 . . . . 2 . . AOE 345 | . . . . . 93 47 139 9 10 10 . 37 Terrain Rammed . | . . . . . . . . . . . . . Walls Destroyed . | . . . . . . . . . . . . . Machines Disabled . | . . . . . . . . . . . . . Actions | -11 -10 -10 -10 -9 -8 -7 -6 -5 -4 -4 -4 -4 --------- Run | Yrd Mat Min Exi Min Mat Fac Fac Fac Fac Upp Upp War Total 5900 | 47 220 150 598 176 442 247 903 254 196 762 629 1276 Wait 1092 | . . . . . . . . . . 6 . 1086 Move 4447 | 32 215 128 592 125 387 236 839 229 189 724 587 164 Hop . | . . . . . . . . . . . . . Pick Up 78 | 7 3 10 1 1 12 4 12 10 . 6 9 3 Fast Attach 3 | . . . . 3 . . . . . . . . Attach 42 | 7 1 . . 1 5 2 8 2 2 3 5 6 Detach 5 | . . . . . 1 . 2 . . 1 . 1 Swap 35 | . 1 6 1 1 7 . 6 4 . 3 4 2 Drop 41 | 1 . 6 1 3 7 . 6 6 . 1 9 1 Fire 147 | . . . 2 42 20 3 27 3 4 18 15 13 Melee 3 | . . . . . 3 . . . . . . . Ram . | . . . . . . . . . . . . . Kick 6 | . . . . . . 2 3 . 1 . . . Crush . | . . . . . . . . . . . . . Escape Stasis . | . . . . . . . . . . . . . Rewire 1 | . . . 1 . . . . . . . . . Trap . | . . . . . . . . . . . . . Miscellaneous . | . . . . . . . . . . . . . Route ------- -11/Scrapyard -10/Materials -10/Mines -10/Exiles (discovered 2 exits: [*Min x2]) -9/Mines -8/Materials -7/Factory -6/Factory -5/Factory -4/Factory (discovered 2 exits: [*Res] / [*Upp]) -4/Upper Caves -4/Upper Caves (discovered 2 exits: [*Res] / [*War]) -4/Warlord History --------- Turn | Location | Event 20 | -11/Scrapyard | Discovered new exit (range 14) 46 | -11/Scrapyard | Entered Materials 235 | -10/Materials | Discovered new exit (range 7) 246 | -10/Materials | Entered Mines 305 | -10/Mines | Build established: Mutant 311 | -10/Mines | Joined a pair of Derelicts in attacking an 0b10 outpost 400 | -10/Mines | Deemed a non-threat by the Exiles lab entrance 400 | -10/Mines | Discovered new exit (range 5) 410 | -10/Mines | Entered Exiles 463 | -10/Exiles | Discovered new exit (range 15) 480 | -10/Exiles | Met 8R-AWN 508 | -10/Exiles | Met EX-HEX 582 | -10/Exiles | Met EX-DEC 611 | -10/Exiles | Build established: Scavenger-Mutant 638 | -10/Exiles | Visited The Gauntlet 897 | -10/Exiles | Discovered new exit (range 14) 992 | -10/Exiles | Learned location of Zion (-7) 1021 | -10/Exiles | Met EX-BIN 1056 | -10/Exiles | Aligned with FarCom system 1057 | -10/Exiles | Given EX-Vault access code 1128 | -10/Exiles | Opened EX-Vault 1146 | -10/Exiles | Found Prototype Energy Cannon 1182 | -10/Exiles | Warned to stay clear of 0b10 Research branches 1194 | -10/Exiles | Exiles lab attacked by MAIN.C 1286 | -10/Exiles | Lost 4 allies 1368 | -10/Exiles | Left Exiles lab with Firepult 1368 | -10/Exiles | Entered Mines 1422 | -9/Mines | Assembled infested the area 1427 | -9/Mines | Assisted by a Guerilla fighting off Assembled 1499 | -9/Mines | Core integrity fell below 50% 1563 | -9/Mines | Identified Firepult 1633 | -9/Mines | Discovered new exit (range 14) 1650 | -9/Mines | Entered Materials 1650 | -8/Materials | Evolved 4 slots: Propulsion x1, Utility x2, Weapon x1 2011 | -8/Materials | Met 7R-MNS 2184 | -8/Materials | Build established: Skirmisher 2291 | -8/Materials | Discovered new exit (range 8) 2332 | -8/Materials | Entered Factory 2332 | -7/Factory | Evolved 2 slots: Utility x2 2333 | -7/Factory | Caught up to 7R-MNS 2780 | -7/Factory | Discovered new exit (range 9) 2797 | -7/Factory | Entered another Factory area 2797 | -6/Factory | Evolved 2 slots: Utility x2 2798 | -6/Factory | Caught up to 7R-MNS 3577 | -6/Factory | Build established: Scavenger-Tank 3936 | -6/Factory | Build established: Scavenger-Mutant 4530 | -6/Factory | Discovered new exit (range 15) 4585 | -6/Factory | Entered another Factory area 4585 | -5/Factory | Evolved 2 slots: Utility x2 4586 | -5/Factory | Caught up to 7R-MNS 4799 | -5/Factory | Spotted B-75 Beast 4888 | -5/Factory | Build established: Scavenger-Skirmisher 5036 | -5/Factory | Discovered new exit (range 7) 5048 | -5/Factory | Entered another Factory area 5048 | -4/Factory | Evolved 2 slots: Utility x2 5049 | -4/Factory | Caught up to 7R-MNS 5273 | -4/Factory | Discovered new exit (range 7) 5383 | -4/Factory | Discovered new exit (range 19) 5399 | -4/Factory | 7R-MNS successfully reached the Upper Caves 5419 | -4/Factory | Entered Upper Caves 5435 | -4/Upper Caves | Learned location of Quarantine (-2) 5795 | -4/Upper Caves | Build established: Scavenger-Tank 5888 | -4/Upper Caves | Spotted B-86 Titan 5971 | -4/Upper Caves | Destroyed B-86 Titan 5980 | -4/Upper Caves | Found Hvy. Reflective Plating 6382 | -4/Upper Caves | Learned Research machine intel 6421 | -4/Upper Caves | Build established: Scavenger-Mutant 6738 | -4/Upper Caves | Attracted the attention of an 0b10 checkpoint 6798 | -4/Upper Caves | Discovered new exit (range 20) 6852 | -4/Upper Caves | Entered another Upper Caves area 6896 | -4/Upper Caves | Discovered new exit (range 11) 6910 | -4/Upper Caves | Encountered a Warlord checkpoint 7079 | -4/Upper Caves | Learned Research security intel 7144 | -4/Upper Caves | Found Imp. Powered Armor 7392 | -4/Upper Caves | Destroyed 7 combat bots 7432 | -4/Upper Caves | Build established: Mutant 7521 | -4/Upper Caves | Learned Research stockpile data 7676 | -4/Upper Caves | Discovered new exit (range 13) 7788 | -4/Upper Caves | Learned location of Armory (-3) 7788 | -4/Upper Caves | Learned Extension trap positions 7788 | -4/Upper Caves | Learned Research emergency access door positions 7788 | -4/Upper Caves | Learned Armory stockpile data 7788 | -4/Upper Caves | Learned Armory security intel 8022 | -4/Upper Caves | Entered Warlord 8088 | -4/Warlord | System corruption cleaned by Quarantine Array 9322 | -4/Warlord | Warlord's base attacked by MAIN.C 9342 | -4/Warlord | Core integrity fell below 50% 9363 | -4/Warlord | Destroyed 9 combat bots 9458 | -4/Warlord | Core integrity fell below 20% 9474 | -4/Warlord | Destroyed by G-73 Enforcer with Phase Gun Last Messages --------------- Adv. Heat Sink destroyed. B-74 Champion heat damages Broken Med. Treads. B-74 Champion overheating. B-74 Champion heat damages Powered Hammer. B-60 Warrior heat damages core (-13). G-73 Enforcer heat damages Myomer Leg. B-74 Champion overheating. G-73 Enforcer heat damages Adv. Heat Sink. B-74 Champion heat spikes uncontrollably. B-60 Warrior heat damages core (-20). B-60 Warrior heat damages core (-17). B-74 Champion heat short circuits Rnf. Antimatter Reactor. Hvy. Reflective Plating destroyed. Myomer Leg destroyed. Seismic Detector destroyed. Imp. Light Armor Plating destroyed. B-74 Champion heat damages Broken Med. Treads. B-74 Champion heat spikes uncontrollably. B-74 Champion heat damages Hvy. Armor Plating, Broken Med. Treads, Broken Med. Treads, Powered Hammer. Map ----- +----------------------------------------------------+ | ?????????????????????????????????????????????????? | | ?????????????????????????????????????????????????? | | ?????????????????????????????????????????????????? | | ?????????????????????????????????????????????????? | | ?????????????????????????????????????????????????? | | ?????????????????????????????????????????????????? | | ?????????????????????????????????????????????????? | | ?????????????????????????????????????????????????? | | ?????????????????????????????????????????????????? | | ?????????????????????????????????????????????????? | | ?????????????????????????????????????????????????? | | ????????????????????????????????????????? ???#???? | | ???????????????????????????????????#?#???# #?#?## | | ?????????????????????????????????#?????### ??### | | ????????????????????????????????#?#????#??? ?? | | ????????????????????????????#????#?##????##? ### | | ???????????????????????????????????###??#??# | | ??????????????????????????"?????????#?#??????# | | ????????????????????????#""???????#????#???#?# | | ????????????????????????#""#????#??????##??#?## | | ????????????????????????#""#???????????##?#??##" | | ?????????????????????####""#####??#??##?####### | | ?????????????????????# "" "############# # | | ?????????????????????# "" """"""""""" | | ?????????????????????# "" """"""""""""# | | ?????????????????????+^ @ l^g g ! # = | | ?????????????????????+^ g g b%%! % | | ?????????????????????+^ ^ ^ g | | ?????????????????????+^ ^ ^ g # | | ?????????????????????# "" """"""""""""# | | ?????????????????????# "" """"""""""""# | | ?????????????????????# "" "############## # | | ?????????????????????####""#####?#?????##?##### # | | ????????????????????????#""#?##???##?##?#?#### # | | ????????????????????????#""??#????#######?### ## | | ??????????????????????????"??#?###?########## ### | | ??????????????????????????????###?????#?#### ### | | ?????????????????????????????#?#??########?# ### | | ???????????????????????????????#?##??#?#??## #### | | ?????????????????????????????###?#??###??### ^#?## | | ??????????????????????????#?##???##?#?##?### ##?# | | ???????????????????????????#####?#?####?### ##? | | ????????????????????????????#####?###???## ^ ## | | ???????????????????????????#???#??##?##### ## # | | ???????????????????????????##??###?### # #### | | ??????????????????????????#?####?#??# ##?# | | ?????????????????????????????#?#?#?## #### | | ???????????????????????????##??#?#?## ## #?## | | ???????????????????????????#???###??###### #?### | | ????????????????????????????#?##?#?##?#?# ####?? | +----------------------------------------------------+ Best States ------------- Heat Dissipation 93 Energy Generation 21 Energy Capacity 325 Matter Stores 300 Matter Capacity 300 Sight Range 20 Robot Scan Range 15 Terrain Scan Range 16 Terrain Scan Density 10 Armor Coverage 1000 Resistance: TH 25 Resistance: EM 20 Core Shielding 30 Propulsion Shielding 33 Utility Shielding 66 Weapon Shielding 90 Evasion (%) 55 Recoil Reduction 2 Matter Filtering 50 Energy Filtering 30 Item Schematics ----------------- Flexi-carbon Leg | -8/Materials | Scanalyzed Robot Schematics ------------------ None Fabricated ------------ Nothing Alien Tech Used ----------------- None Achievements -------------- Oh No You Don't! Pyromaniac Challenges ------------ None Game ------ Seed FluxMetafieldSteel Manual? 0 Play Time 01:25:29 Cumulative 22.2 hours Start 2024.03.31 @ 05:15:10 End 2024.03.31 @ 06:43:39 Sessions 1 Manual Loads 0 Difficulty Rogue Special Mode None Game No. 46 Rogue 43 Adventurer 0 Explorer 3 Win Type - Total 0 Types 0/0/0/0/0/0/0/0/0 Lore% 20 Gallery% 29 Achievement% 24 Wizard Run 0 Options --------- Layout 0 ASCII 0 Keyboard 0 Movement Mouse Keybinds 0 Fullscreen 2 Font 18/SmallcapsGlow Map View 76x50 Zoom Use 0% Tactical HUD 0 Map Filters NONE Filters NONE Steam 1 RUN: 921e028d-fe7e-4b15-8ebd-595b4b50f8f9